bitfinex/quotes_SOLUSD_20240708
["timestamp","ask_amount","ask_price","bid_price","bid_amount"]
[1720409806517,0.17,131.86,131.72,5.7681]
[1720409806715,100.0,131.86,131.72,5.7681]
[1720409806930,100.0,131.86,131.73,20.17]
[1720409807306,100.0,131.89,131.75,48.7]
[1720409807499,100.0,131.89,131.76,20.17]
[1720409807700,100.0,131.92,131.76,20.17]
[1720409807894,100.0,131.92,131.77,3.1244]
[1720409808100,100.0,131.92,131.78,0.17]
[1720409808314,15.2285,131.93,131.78,0.17]
[1720409808315,100.0,131.9,131.78,0.17]
[1720409808906,100.0,131.92,131.78,0.17]
[1720409809112,100.0,131.9,131.79,54.4681]
[1720409809322,100.0,131.9,131.8,20.17]
[1720409809828,260.1,131.96,131.8,20.17]
[1720409810023,100.0,131.93,131.8,20.17]
[1720409810231,100.0,131.92,131.8,20.17]
[1720409811124,100.0,131.91,131.8,20.17]
[1720409811330,0.17,131.9,131.79,5.7681]
[1720409812098,100.0,131.88,131.79,5.7681]
[1720409812310,0.17,131.87,131.74,54.4681]
[1720409812511,15.9964,131.88,131.74,54.4681]
[1720409812722,100.0,131.83,131.7,48.7]
[1720409813020,0.17,131.87,131.7,6.08067924]
[1720409813021,100.0,131.81,131.7,6.08067924]
[1720409813334,0.17,131.82,131.69,5.7681]
[1720409813632,100.0,131.79,131.69,5.7681]
[1720409814509,100.0,131.81,131.7,20.0]
[1720409814908,100.0,131.81,131.71,48.87]
[1720409815207,100.0,131.79,131.72,20.0]
[1720409815425,15.9964,131.88,131.69,5.7681]
[1720409815628,100.0,131.77,131.69,5.7681]
[1720409816225,100.0,131.75,131.69,5.7681]
[1720409816420,100.0,131.75,131.63,5.7681]
[1720409816925,275.1,131.85,131.63,5.7681]
[1720409816926,15.9964,131.78,131.63,5.7681]
[1720409817228,15.9964,131.78,131.63,5.8962763]
[1720409817432,100.0,131.74,131.63,5.8962763]
[1720409818029,0.17,131.75,131.63,5.8962763]
[1720409818327,100.0,131.73,131.63,5.8962763]
[1720409818516,100.0,131.69,131.63,0.1281763]
[1720409818932,100.0,131.71,131.63,0.1281763]
[1720409819135,100.0,131.69,131.63,0.1281763]
[1720409820145,100.0,131.72,131.63,0.1281763]
[1720409820835,100.0,131.73,131.63,0.1281763]
[1720409822046,100.0,131.74,131.63,0.1281763]
[1720409822213,360.1,131.78,131.65,51.8244]
[1720409822413,100.0,131.73,131.66,20.0]
[1720409822832,100.0,131.7,131.63,0.1281763]
[1720409823446,15.9964,131.73,131.63,0.1281763]
[1720409823447,100.0,131.67,131.63,0.1281763]
[1720409824426,100.0,131.68,131.63,0.1281763]
[1720409824620,15.9964,131.73,131.63,0.1281763]
[1720409824621,100.0,131.72,131.63,0.1281763]
[1720409824826,100.0,131.7,131.63,0.1281763]
[1720409825024,100.0,131.67,131.63,0.1281763]
[1720409825646,100.0,131.68,131.63,0.1281763]
[1720409825860,100.0,131.66,131.63,0.1281763]
[1720409826032,116.1664,131.73,131.63,0.1281763]
[1720409826351,100.0,131.69,131.63,0.1281763]
[1720409826715,100.0,131.67,131.63,0.1281763]
[1720409826938,100.0,131.68,131.63,0.1281763]
[1720409827248,15.9964,131.73,131.63,0.1281763]
[1720409827555,100.0,131.66,131.63,0.1281763]
[1720409828529,100.0,131.69,131.63,0.1281763]
[1720409828728,0.17,131.72,131.63,0.1281763]
[1720409828919,100.0,131.67,131.63,0.1281763]
[1720409829427,100.0,131.65,131.63,0.1281763]
[1720409829924,6.5113,131.69,131.63,0.1281763]
[1720409829925,100.0,131.64,131.63,0.1281763]
[1720409830423,100.17,131.64,131.63,0.1281763]
[1720409830735,100.0,131.64,131.63,0.1281763]
[1720409830918,100.0,131.66,131.63,0.1281763]
[1720409831117,100.0,131.64,131.63,0.1281763]
[1720409831333,100.17,131.64,131.63,0.1281763]
[1720409833646,100.0,131.64,131.63,0.1281763]
[1720409833850,100.0,131.67,131.63,0.1281763]
[1720409834225,100.0,131.64,131.63,0.1281763]
[1720409835647,100.17,131.64,131.63,0.1281763]
[1720409836826,100.17,131.64,131.61,0.2]
[1720409836827,100.0,131.62,131.61,0.2]
[1720409837022,100.17,131.62,131.61,0.2]
[1720409837738,120.17,131.62,131.61,0.2]
[1720409838448,100.17,131.62,131.61,0.2]
[1720409838827,100.0,131.62,131.61,0.2]
[1720409840347,100.17,131.62,131.61,0.2]
[1720409841333,100.0,131.57,131.52,0.8587069]
[1720409841568,100.17,131.57,131.52,0.8587069]
[1720409841772,120.17,131.57,131.52,0.8587069]
[1720409842435,100.0,131.57,131.52,0.8587069]
[1720409843645,100.0,131.6,131.52,0.8587069]
[1720409845075,100.0,131.62,131.52,0.8587069]
[1720409845233,100.0,131.62,131.54,5.7681]
[1720409845434,100.0,131.67,131.55,20.17]
[1720409845966,100.0,131.71,131.57,48.7]
[1720409846143,100.0,131.71,131.58,20.17]
[1720409846755,260.1,131.75,131.61,48.7]
[1720409846949,100.0,131.75,131.62,20.17]
[1720409848189,100.0,131.8,131.66,48.7]
[1720409848358,100.0,131.78,131.67,20.17]
[1720409848878,100.0,131.77,131.67,20.17]
[1720409849362,100.0,131.81,131.67,20.17]
[1720409849554,6.3978,131.84,131.67,20.17]
[1720409849757,266.4978,131.84,131.67,20.17]
[1720409850064,100.0,131.79,131.67,20.17]
[1720409850264,100.0,131.8,131.67,43.07]
[1720409850470,100.0,131.8,131.67,20.17]
[1720409850984,100.0,131.78,131.67,20.17]
[1720409851480,100.0,131.76,131.67,20.0]
[1720409851681,100.0,131.76,131.66,48.7]
[1720409851892,100.0,131.74,131.63,5.7681]
[1720409852486,100.0,131.72,131.63,5.7681]
[1720409853360,260.1,131.81,131.63,5.7681]
[1720409853560,100.0,131.78,131.64,20.17]
[1720409854374,100.0,131.78,131.64,43.07]
[1720409854577,260.1,131.81,131.64,43.07]
[1720409854977,100.0,131.79,131.64,43.07]
[1720409855892,100.0,131.79,131.65,37.9]
[1720409856088,100.0,131.79,131.66,20.17]
[1720409856795,360.1,131.81,131.66,20.17]
[1720409857295,100.0,131.81,131.69,48.7]
[1720409857494,100.0,131.81,131.7,20.17]
[1720409858167,100.0,131.81,131.7,20.0]
[1720409858373,0.17,131.8,131.69,48.7]
[1720409858971,100.0,131.81,131.7,5.7681]
[1720409859692,6.3978,131.84,131.71,20.0]
[1720409859693,100.0,131.78,131.71,20.0]
[1720409859897,100.17,131.8,131.71,20.0]
[1720409860497,100.0,131.78,131.71,20.0]
[1720409861394,100.0,131.8,131.71,20.0]
[1720409862174,100.0,131.8,131.72,0.17]
[1720409862485,100.0,131.8,131.71,20.0]
[1720409862696,100.0,131.76,131.71,20.0]
[1720409862873,6.3978,131.84,131.71,20.0]
[1720409863081,100.0,131.77,131.71,20.0]
[1720409863389,6.3978,131.84,131.71,20.0]
[1720409863594,100.0,131.76,131.71,20.0]
[1720409863785,100.0,131.76,131.67,20.0]
[1720409864582,100.0,131.8,131.67,20.0]
[1720409864801,0.17,131.81,131.68,0.17]
[1720409865117,100.0,131.79,131.68,0.17]
[1720409865286,6.3978,131.84,131.68,0.17]
[1720409865287,100.0,131.76,131.68,0.17]
[1720409865483,100.0,131.76,131.67,20.0]
[1720409866203,100.0,131.75,131.67,20.0]
[1720409867191,100.0,131.75,131.68,0.17]
[1720409867392,100.0,131.75,131.67,20.0]
[1720409867698,0.17,131.78,131.66,5.7681]
[1720409868186,100.0,131.72,131.62,5.7681]
[1720409868792,100.0,131.7,131.62,5.7681]
[1720409868992,6.4418,131.75,131.62,5.7681]
[1720409869197,100.0,131.69,131.62,5.7681]
[1720409869805,100.0,131.67,131.57,5.7681]
[1720409871094,100.0,131.68,131.57,5.7681]
[1720409871303,100.0,131.7,131.58,20.0]
[1720409871603,100.0,131.68,131.58,20.0]
[1720409871808,100.0,131.66,131.58,20.0]
[1720409873412,100.0,131.63,131.58,20.0]
[1720409873789,100.0,131.63,131.57,5.7681]
[1720409873995,100.0,131.63,131.56,0.04503973]
[1720409874198,100.0,131.61,131.56,0.04503973]
[1720409875424,100.0,131.63,131.56,0.04503973]
[1720409876087,100.0,131.64,131.56,0.04503973]
[1720409876312,100.0,131.66,131.56,0.04503973]
[1720409876695,100.0,131.64,131.56,0.04503973]
[1720409877710,100.0,131.66,131.56,0.04503973]
[1720409877900,100.0,131.68,131.56,0.04503973]
[1720409878211,100.0,131.68,131.56,20.04503973]
[1720409878411,100.0,131.66,131.57,0.17]
[1720409878818,100.0,131.63,131.56,20.04503973]
[1720409880011,100.0,131.63,131.56,0.04503973]
[1720409880513,21.4418,131.75,131.56,0.04503973]
[1720409880700,100.0,131.61,131.56,0.04503973]
[1720409880906,100.0,131.64,131.56,0.04503973]
[1720409881117,0.17,131.63,131.56,0.04503973]
[1720409881314,100.0,131.61,131.56,0.04503973]
[1720409882005,0.17,131.63,131.56,0.04503973]
[1720409882006,100.0,131.57,131.56,0.04503973]
[1720409882211,100.17,131.6,131.56,0.04503973]
[1720409882414,100.0,131.6,131.56,0.04503973]
[1720409882615,100.0,131.58,131.56,0.04503973]
[1720409883013,100.0,131.6,131.56,0.04503973]
[1720409884427,0.17,131.61,131.56,0.04503973]
[1720409884428,100.0,131.57,131.56,0.04503973]
[1720409884916,100.17,131.57,131.56,0.04503973]
[1720409885119,100.0,131.57,131.56,0.04503973]
[1720409885314,100.17,131.61,131.56,0.04503973]
[1720409886002,100.0,131.61,131.56,0.04503973]
[1720409886224,100.0,131.65,131.56,0.04503973]
[1720409886725,15.9518,131.67,131.56,0.04503973]
[1720409887220,100.0,131.61,131.56,0.04503973]
[1720409887644,100.0,131.57,131.56,0.04503973]
[1720409887829,100.17,131.57,131.56,0.04503973]
[1720409888021,100.0,131.57,131.56,0.04503973]
[1720409889006,100.0,131.59,131.56,0.04503973]
[1720409889912,100.0,131.62,131.56,0.04503973]
[1720409890129,100.0,131.6,131.56,0.04503973]
[1720409890332,100.0,131.62,131.56,0.04503973]
[1720409890633,6.033,131.65,131.56,0.04503973]
[1720409890634,100.0,131.6,131.56,0.04503973]
[1720409891440,6.033,131.65,131.56,0.04503973]
[1720409891441,100.0,131.62,131.56,0.04503973]
[1720409892108,100.0,131.6,131.56,0.04503973]
[1720409893839,100.0,131.59,131.56,0.04503973]
[1720409895175,100.0,131.58,131.56,0.04503973]
[1720409895313,100.17,131.61,131.56,0.04503973]
[1720409895639,100.0,131.61,131.56,0.04503973]
[1720409897439,100.0,131.59,131.56,0.04503973]
[1720409898444,100.0,131.57,131.56,0.04503973]
[1720409899448,100.17,131.57,131.56,0.04503973]
[1720409899657,100.0,131.53,131.52,0.8587069]
[1720409902166,100.17,131.53,131.52,0.8587069]
[1720409902468,100.17,131.53,131.51,0.2]
[1720409902685,0.17,131.52,131.51,0.2]
[1720409904450,100.17,131.52,131.51,0.2]
[1720409904771,100.0,131.46,131.41,0.2]
[1720409905867,100.0,131.48,131.41,0.2]
[1720409907372,100.0,131.46,131.41,0.2]
[1720409909174,100.0,131.48,131.41,0.2]
[1720409909373,100.0,131.46,131.41,0.2]
[1720409910045,100.0,131.48,131.41,0.2]
[1720409913060,100.0,131.46,131.41,0.2]
[1720409913973,100.0,131.52,131.41,0.2]
[1720409914301,100.0,131.52,131.43,39.88]
[1720409914461,100.0,131.52,131.44,20.17]
[1720409914654,100.0,131.52,131.45,20.0]
[1720409914860,100.0,131.54,131.44,0.17]
[1720409915079,100.0,131.52,131.44,0.17]
[1720409915575,100.0,131.5,131.41,0.2]
[1720409915885,100.0,131.48,131.41,0.2]
[1720409916262,100.0,131.45,131.41,0.2]
[1720409916463,100.0,131.47,131.41,0.2]
[1720409917280,100.0,131.45,131.41,0.2]
[1720409917672,100.0,131.47,131.41,0.2]
[1720409917986,100.0,131.51,131.41,0.2]
[1720409918282,100.0,131.51,131.42,0.17]
[1720409918472,100.0,131.51,131.41,0.2]
[1720409918670,6.5832,131.57,131.41,0.2]
[1720409918872,100.0,131.49,131.41,0.2]
[1720409919591,100.0,131.47,131.41,0.2]
[1720409924376,100.0,131.5,131.41,0.2]
[1720409924871,100.0,131.48,131.41,0.2]
[1720409925491,100.0,131.49,131.41,0.2]
[1720409926001,100.0,131.47,131.41,0.2]
[1720409927070,100.0,131.45,131.41,0.2]
[1720409928490,100.0,131.47,131.41,0.2]
[1720409929690,100.0,131.49,131.41,0.2]
[1720409930070,100.0,131.46,131.41,0.2]
[1720409931899,100.0,131.44,131.41,0.2]
[1720409932395,6.4126,131.49,131.41,0.2]
[1720409932396,100.0,131.46,131.41,0.2]
[1720409933075,100.0,131.48,131.41,0.2]
[1720409933275,100.0,131.46,131.41,0.2]
[1720409938695,100.0,131.46,131.42,35.46]
[1720409938997,100.0,131.44,131.43,20.0]
[1720409939201,100.0,131.44,131.42,35.46]
[1720409941178,100.0,131.46,131.42,35.46]
[1720409941697,100.0,131.43,131.41,0.2]
[1720409941903,21.9212,131.42,131.41,0.2]
[1720409942286,100.0,131.4,131.39,0.8587069]
[1720409942715,100.17,131.4,131.39,0.8587069]
[1720409943380,100.0,131.34,131.27,6.05339352]
[1720409944424,100.0,131.32,131.26,0.8587069]
[1720409944723,100.0,131.32,131.26,20.8587069]
[1720409945103,100.0,131.34,131.26,26.91125259]
[1720409945698,100.0,131.38,131.26,26.91125259]
[1720409946021,100.0,131.41,131.29,39.96]
[1720409946193,100.0,131.39,131.3,20.0]
[1720409946614,100.0,131.39,131.32,0.17]
[1720409947746,100.0,131.41,131.33,45.7281]
[1720409947907,100.0,131.43,131.34,20.17]
[1720409948219,43.97922272,131.59,131.37,39.96]
[1720409948220,100.0,131.47,131.37,39.96]
[1720409948402,100.0,131.48,131.38,20.17]
[1720409949623,100.0,131.52,131.42,5.7681]
[1720409949824,100.0,131.52,131.43,20.0]
[1720409950021,100.0,131.47,131.43,20.0]
[1720409950511,100.0,131.47,131.4,20.0]
[1720409951203,100.0,131.51,131.4,20.0]
[1720409951403,100.0,131.51,131.41,0.17]
[1720409951924,100.0,131.52,131.41,0.17]
[1720409952802,100.0,131.5,131.41,0.17]
[1720409953005,100.0,131.48,131.41,0.17]
[1720409953914,6.1888,131.54,131.41,0.17]
[1720409953915,100.0,131.52,131.41,0.17]
[1720409955104,100.0,131.5,131.41,0.17]
[1720409955831,100.0,131.46,131.4,39.96]
[1720409956330,6.1888,131.54,131.4,39.96]
[1720409956331,100.0,131.48,131.4,39.96]
[1720409956532,100.0,131.51,131.4,39.96]
[1720409957111,100.0,131.51,131.41,0.17]
[1720409957310,6.1888,131.54,131.41,20.17]
[1720409957311,100.0,131.49,131.41,20.17]
[1720409957532,100.0,131.53,131.41,20.17]
[1720409957716,100.0,131.53,131.45,39.96]
[1720409957913,100.0,131.53,131.46,20.0]
[1720409958115,100.0,131.51,131.46,20.0]
[1720409958832,100.0,131.47,131.39,39.96]
[1720409959014,100.0,131.5,131.39,39.96]
[1720409959213,100.0,131.51,131.39,62.82]
[1720409959408,100.0,131.51,131.39,79.92]
[1720409959609,100.0,131.51,131.39,39.96]
[1720409960116,100.0,131.49,131.39,39.96]
[1720409960325,100.0,131.49,131.4,20.17]
[1720409960515,100.0,131.47,131.4,20.17]
[1720409961026,100.0,131.46,131.38,5.7681]
[1720409961529,100.0,131.44,131.36,6.13826312]
[1720409961731,100.0,131.44,131.35,39.96]
[1720409962109,100.0,131.42,131.35,39.96]
[1720409962306,100.0,131.42,131.34,5.7681]
[1720409962925,100.0,131.4,131.34,5.7681]
[1720409963710,100.0,131.4,131.35,20.0]
[1720409964125,100.0,131.4,131.32,39.96]
[1720409964308,100.0,131.37,131.31,0.2]
[1720409965635,15.9907,131.4,131.31,0.2]
[1720409965636,100.0,131.35,131.31,0.2]
[1720409965813,100.0,131.37,131.31,0.2]
[1720409966436,100.0,131.38,131.31,0.2]
[1720409967117,100.0,131.36,131.31,0.2]
[1720409967321,100.0,131.34,131.31,0.2]
[1720409968929,100.0,131.38,131.31,0.2]
[1720409969140,100.0,131.38,131.32,0.17]
[1720409970028,100.0,131.4,131.32,0.17]
[1720409970246,100.0,131.38,131.31,0.2]
[1720409971238,100.0,131.38,131.32,0.17]
[1720409971559,100.0,131.4,131.32,0.17]
[1720409973036,100.0,131.42,131.32,40.13]
[1720409973246,100.0,131.42,131.33,20.0]
[1720409973547,100.0,131.4,131.34,0.17]
[1720409973711,100.0,131.42,131.34,0.17]
[1720409974322,100.0,131.4,131.34,0.17]
[1720409975355,100.0,131.38,131.33,20.0]
[1720409976737,100.0,131.4,131.33,20.0]
[1720409976935,100.0,131.38,131.33,20.0]
[1720409980157,100.0,131.36,131.33,20.0]
[1720409980330,100.0,131.36,131.31,20.2]
[1720409981155,100.0,131.38,131.31,20.2]
[1720409982557,100.0,131.36,131.31,0.2]
[1720409982932,100.0,131.38,131.31,0.2]
[1720409983329,22.761,131.44,131.31,0.2]
[1720409983535,100.0,131.36,131.31,0.2]
[1720409984033,100.0,131.34,131.31,0.2]
[1720409984947,100.0,131.36,131.31,0.2]
[1720409986057,37.761,131.44,131.31,0.2]
[1720409986264,100.0,131.36,131.31,0.2]
[1720409987939,100.0,131.38,131.31,0.2]
[1720409988558,100.0,131.35,131.31,0.2]
[1720409988943,100.0,131.37,131.31,0.2]
[1720409991075,21.8228,131.36,131.31,0.2]
[1720409991267,100.0,131.33,131.31,0.2]
[1720409991470,0.17,131.32,131.31,0.2]
[1720409997059,100.0,131.27,131.26,0.8587069]
[1720409998560,100.0,131.3,131.26,0.8587069]
[1720410000587,0.17,131.32,131.26,0.8587069]
[1720410000588,100.0,131.32,131.26,0.8587069]
[1720410001474,100.0,131.3,131.26,0.8587069]
[1720410002974,100.0,131.32,131.26,6.6268069]
[1720410003174,100.0,131.32,131.27,20.0]
[1720410004706,100.0,131.3,131.26,0.8587069]
[1720410005420,100.0,131.28,131.26,0.8587069]
[1720410006486,0.17,131.27,131.26,0.8587069]
[1720410007400,100.17,131.27,131.26,0.8587069]
[1720410007577,100.0,131.23,131.21,0.2]
[1720410008280,0.17,131.22,131.21,0.2]
[1720410011305,100.0,131.23,131.21,0.2]
[1720410011810,100.0,131.24,131.21,0.2]
[1720410012191,100.0,131.27,131.21,0.2]
[1720410012501,100.0,131.32,131.21,0.2]
[1720410012801,100.0,131.29,131.21,0.2]
[1720410013004,100.0,131.27,131.21,0.2]
[1720410013302,100.0,131.22,131.21,0.2]
[1720410013604,100.0,131.24,131.21,0.2]
[1720410014003,100.0,131.29,131.21,0.2]
[1720410015021,100.0,131.26,131.21,0.2]
[1720410015798,100.0,131.28,131.21,0.2]
[1720410016910,100.0,131.24,131.21,0.2]
[1720410017202,100.0,131.22,131.21,0.2]
[1720410018307,100.17,131.22,131.21,0.2]
[1720410020614,116.0947,131.17,131.16,0.04517709]
[1720410020800,116.2647,131.17,131.16,0.04517709]
[1720410024090,100.0,131.17,131.16,0.04517709]
[1720410026297,100.17,131.17,131.16,0.04517709]
[1720410027299,106.6429,131.17,131.16,0.04517709]
[1720410028020,100.0,131.13,131.12,0.8587069]
[1720410028203,100.17,131.13,131.12,0.8587069]
[1720410029795,116.6779,131.13,131.11,0.2]
[1720410029995,100.0,131.05,131.01,0.2]
[1720410030412,100.0,131.03,131.01,0.2]
[1720410030814,100.0,131.05,131.01,0.2]
[1720410031196,100.0,131.03,131.01,0.2]
[1720410031396,100.0,131.05,131.01,0.2]
[1720410032533,100.0,131.03,131.01,0.2]
[1720410034230,100.0,131.05,131.01,0.2]
[1720410034602,100.0,131.03,131.01,0.2]
[1720410035398,0.17,131.02,131.01,0.2]
[1720410036921,100.0,131.0,130.99,0.8587069]
[1720410037231,100.0,131.0,130.86,0.8587069]
[1720410037232,100.0,130.94,130.86,0.8587069]
[1720410037843,100.0,130.92,130.86,0.8587069]
[1720410038008,100.17,130.92,130.86,0.8587069]
[1720410038319,100.0,130.92,130.86,0.8587069]
[1720410039006,100.0,130.94,130.86,0.8587069]
[1720410039206,100.0,130.92,130.86,0.8587069]
[1720410042316,100.0,130.87,130.86,0.8587069]
[1720410042718,22.8748,130.92,130.86,0.8587069]
[1720410042933,100.0,130.9,130.86,0.8587069]
[1720410043442,100.0,130.93,130.86,0.8587069]
[1720410044121,100.0,130.96,130.86,0.8587069]
[1720410044322,100.0,130.96,130.88,39.96]
[1720410044516,100.0,130.96,130.89,20.0]
[1720410046733,100.0,130.94,130.89,20.0]
[1720410046943,100.0,130.94,130.86,0.8587069]
[1720410047440,100.0,130.96,130.86,0.8587069]
[1720410048040,100.0,131.0,130.87,15.0]
[1720410048234,100.0,131.02,130.92,39.96]
[1720410048441,100.0,131.02,130.93,20.0]
[1720410049015,100.0,131.02,130.94,0.17]
[1720410049440,100.0,131.04,130.96,39.96]
[1720410049741,100.0,131.04,130.97,25.9381]
[1720410050137,100.0,131.09,130.97,25.9381]
[1720410050539,6.4899,131.1,130.97,25.9381]
[1720410050540,100.0,131.07,130.97,25.9381]
[1720410050740,6.4899,131.1,130.92,22.86]
[1720410050741,100.0,131.03,130.92,39.96]
[1720410050924,16.6016,131.06,130.92,39.96]
[1720410050925,100.0,130.99,130.92,39.96]
[1720410051644,100.0,130.99,130.89,6.4602]
[1720410051645,100.0,130.99,130.82,5.7681]
[1720410051849,100.0,130.94,130.85,39.96]
[1720410052228,100.0,130.92,130.85,39.96]
[1720410052921,100.0,130.96,130.85,39.96]
[1720410053128,116.6016,130.98,130.85,47.6022]
[1720410053329,100.0,130.96,130.87,0.17]
[1720410054124,116.6016,130.98,130.87,0.17]
[1720410054317,100.0,130.96,130.87,0.17]
[1720410054746,100.0,131.04,130.94,39.96]
[1720410054948,100.0,131.03,130.95,20.17]
[1720410055246,100.0,131.03,130.95,20.0]
[1720410055440,100.0,131.01,130.95,20.0]
[1720410055829,100.0,131.01,130.91,20.0]
[1720410056032,100.0,131.01,130.92,0.17]
[1720410056544,100.0,131.01,130.93,49.09]
[1720410056845,100.0,131.01,130.94,20.0]
[1720410058142,100.0,131.04,130.94,20.0]
[1720410058346,100.0,131.04,130.97,49.09]
[1720410058530,100.0,131.04,130.98,20.0]
[1720410060249,100.0,131.08,130.98,20.0]
[1720410060452,100.0,131.08,131.01,49.09]
[1720410060742,100.0,131.08,131.02,20.0]
[1720410061048,100.0,131.06,131.02,20.0]
[1720410061250,21.8516,131.12,131.02,20.0]
[1720410061423,100.0,131.1,131.03,5.7681]
[1720410061624,100.0,131.12,131.05,49.09]
[1720410061834,100.0,131.12,131.06,20.0]
[1720410062124,100.0,131.14,131.06,20.0]
[1720410062334,100.0,131.12,131.06,20.0]
[1720410062540,100.0,131.14,131.06,20.0]
[1720410063055,100.0,131.11,131.06,20.0]
[1720410063224,100.0,131.15,131.06,20.0]
[1720410063949,100.0,131.15,131.07,0.17]
[1720410064530,100.0,131.17,131.09,49.09]
[1720410064729,100.0,131.15,131.1,20.0]
[1720410064951,100.0,131.13,131.1,20.0]
[1720410065156,100.0,131.17,131.1,20.0]
[1720410065357,100.0,131.17,131.06,7.6299]
[1720410065652,100.0,131.15,131.09,49.09]
[1720410065843,100.0,131.15,131.1,20.0]
[1720410066045,100.0,131.15,131.07,20.17]
[1720410066434,100.0,131.15,131.04,98.18]
[1720410066435,100.0,131.13,131.05,20.0]
[1720410066641,100.0,131.16,131.05,20.0]
[1720410066957,100.0,131.12,131.05,20.0]
[1720410067138,100.0,131.14,131.05,20.0]
[1720410067839,100.0,131.14,131.06,0.17]
[1720410068037,100.0,131.17,131.06,0.17]
[1720410068443,100.0,131.17,131.06,7.7999]
[1720410068650,100.0,131.17,131.07,20.0]
[1720410069155,100.0,131.15,131.07,20.0]
[1720410069339,100.0,131.17,131.08,0.17]
[1720410069542,100.0,131.17,131.08,49.09]
[1720410069744,100.0,131.17,131.09,20.0]
[1720410070153,100.0,131.14,131.09,20.0]
[1720410070951,100.0,131.16,131.09,20.0]
[1720410071135,0.2,131.19,131.09,20.0]
[1720410071336,0.2,131.19,131.1,5.9381]
[1720410071547,0.2,131.19,131.12,49.09]
[1720410071757,100.2,131.19,131.13,20.0]
[1720410072036,0.2,131.19,131.13,20.0]
[1720410073146,100.2,131.19,131.13,20.0]
[1720410073962,0.2,131.19,131.13,20.0]
[1720410074274,0.2,131.29,131.18,49.09]
[1720410074451,0.2,131.29,131.19,20.17]
[1720410075261,0.2,131.29,131.19,20.0]
[1720410076165,0.2,131.29,131.2,0.17]
[1720410076364,100.0,131.27,131.19,20.0]
[1720410077643,0.17,131.26,131.19,20.0]
[1720410077964,100.17,131.28,131.19,20.0]
[1720410077965,0.17,131.28,131.19,20.0]
[1720410078853,0.2,131.29,131.19,20.0]
[1720410079175,0.2,131.29,131.19,27.6224]
[1720410079365,0.2,131.29,131.2,0.17]